[Event "Late-Titled-Tuesday-Blitz-June-04-2024"]
[Site "Chess.com"]
[Date "2024.06.04"]
[Round "1"]
[White "FuenfgegenWilly"]
[Black "jcibarra"]
[Result "0-1"]
[WhiteElo "2493"]
[BlackElo "2920"]
[TimeControl "180+1"]
[EndTime "14:07:59 PDT"]
[Termination "jcibarra won by checkmate"]

1. e4 {[%clk 0:02:56.9]} 1... c5 {[%clk 0:02:59.8]} 2. Ne2 {[%clk 0:02:55]} 2...
Nc6 {[%clk 0:02:58.5]} 3. g3 {[%clk 0:02:53.2]} 3... d5 {[%clk 0:02:57.1]} 4. d3
{[%clk 0:02:51.1]} 4... dxe4 {[%clk 0:02:56]} 5. dxe4 {[%clk 0:02:52]} 5...
Qxd1+ {[%clk 0:02:54.5]} 6. Kxd1 {[%clk 0:02:52.9]} 6... Bg4 {[%clk 0:02:53.9]}
7. c3 {[%clk 0:02:49]} 7... O-O-O+ {[%clk 0:02:39.4]} 8. Nd2 {[%clk 0:02:43.5]}
8... Bf3 {[%clk 0:02:38.8]} 9. Bh3+ {[%clk 0:02:35.4]} 9... e6 {[%clk
0:02:31.5]} 10. Re1 {[%clk 0:02:29.1]} 10... Bxe4 {[%clk 0:02:31.3]} 11. Nf4
{[%clk 0:02:29.4]} 11... Bg6 {[%clk 0:02:24.8]} 12. Bg2 {[%clk 0:02:03.8]} 12...
Kc7 {[%clk 0:02:15.3]} 13. h4 {[%clk 0:02:03]} 13... Nf6 {[%clk 0:02:13.4]} 14.
Nxg6 {[%clk 0:01:55.1]} 14... hxg6 {[%clk 0:02:12.5]} 15. Kc2 {[%clk 0:01:56]}
15... Be7 {[%clk 0:02:05.4]} 16. Nf3 {[%clk 0:01:54.6]} 16... Ng4 {[%clk
0:02:02.4]} 17. Re2 {[%clk 0:01:54.5]} 17... Bd6 {[%clk 0:01:47.9]} 18. Bh3
{[%clk 0:01:44.9]} 18... Nge5 {[%clk 0:01:43.3]} 19. Nxe5 {[%clk 0:01:45]} 19...
Nxe5 {[%clk 0:01:40.2]} 20. b3 {[%clk 0:01:41.1]} 20... b6 {[%clk 0:01:26.7]}
21. Bg2 {[%clk 0:01:40.4]} 21... Ng4 {[%clk 0:01:21.4]} 22. Bf3 {[%clk
0:01:35.7]} 22... Nf6 {[%clk 0:01:20.8]} 23. Bb2 {[%clk 0:01:34.7]} 23... Nd5
{[%clk 0:01:18.8]} 24. a3 {[%clk 0:01:33.8]} 24... Nf6 {[%clk 0:01:07.8]} 25. c4
{[%clk 0:01:30.9]} 25... Rhg8 {[%clk 0:01:03]} 26. a4 {[%clk 0:01:27]} 26... a5
{[%clk 0:01:02]} 27. Rae1 {[%clk 0:01:25.5]} 27... Nd7 {[%clk 0:01:02]} 28. Bg2
{[%clk 0:01:15]} 28... Be7 {[%clk 0:01:01.8]} 29. Bc1 {[%clk 0:01:13]} 29... Bd6
{[%clk 0:00:59.2]} 30. Bb2 {[%clk 0:01:12.7]} 30... Nb8 {[%clk 0:00:59]} 31. Bc3
{[%clk 0:01:10.4]} 31... Nc6 {[%clk 0:00:56.8]} 32. Bxc6 {[%clk 0:01:06.1]}
32... Kxc6 {[%clk 0:00:57.7]} 33. Rd1 {[%clk 0:01:02.8]} 33... Be7 {[%clk
0:00:57.3]} 34. Red2 {[%clk 0:00:59.3]} 34... Rxd2+ {[%clk 0:00:57.1]} 35. Rxd2
{[%clk 0:01:00.2]} 35... Bf6 {[%clk 0:00:57.3]} 36. f4 {[%clk 0:00:55.3]} 36...
Bxc3 {[%clk 0:00:53.3]} 37. Kxc3 {[%clk 0:00:56.2]} 37... Re8 {[%clk 0:00:50.1]}
38. Re2 {[%clk 0:00:51.3]} 38... Rd8 {[%clk 0:00:49.8]} 39. Re1 {[%clk
0:00:51.6]} 39... Rd4 {[%clk 0:00:47.8]} 40. Kc2 {[%clk 0:00:49.7]} 40... Kd6
{[%clk 0:00:46.9]} 41. Kc3 {[%clk 0:00:50]} 41... f6 {[%clk 0:00:46.9]} 42. Rf1
{[%clk 0:00:46.7]} 42... e5 {[%clk 0:00:37.5]} 43. fxe5+ {[%clk 0:00:45.4]}
43... Kxe5 {[%clk 0:00:38.4]} 44. Re1+ {[%clk 0:00:44.9]} 44... Re4 {[%clk
0:00:38.7]} 45. Rg1 {[%clk 0:00:38.4]} 45... Re3+ {[%clk 0:00:37.4]} 46. Kc2
{[%clk 0:00:38.8]} 46... f5 {[%clk 0:00:34.4]} 47. g4 {[%clk 0:00:22.8]} 47...
f4 {[%clk 0:00:34.4]} 48. h5 {[%clk 0:00:23.2]} 48... g5 {[%clk 0:00:30.8]} 49.
Rd1 {[%clk 0:00:22.1]} 49... f3 {[%clk 0:00:30.6]} 50. Rd7 {[%clk 0:00:19.6]}
50... Kf4 {[%clk 0:00:26.7]} 51. Rxg7 {[%clk 0:00:19]} 51... Kxg4 {[%clk
0:00:27]} 52. h6 {[%clk 0:00:19.1]} 52... Re8 {[%clk 0:00:19]} 53. h7 {[%clk
0:00:19.2]} 53... Rh8 {[%clk 0:00:18.3]} 54. Kd3 {[%clk 0:00:14.6]} 54... Kf4
{[%clk 0:00:15.8]} 55. Rf7+ {[%clk 0:00:14]} 55... Kg3 {[%clk 0:00:16.2]} 56.
Ke3 {[%clk 0:00:13.3]} 56... Re8+ {[%clk 0:00:15]} 57. Kd3 {[%clk 0:00:13]}
57... f2 {[%clk 0:00:14.4]} 58. Re7 {[%clk 0:00:11.8]} 58... f1=Q+ {[%clk
0:00:13.8]} 59. Kc2 {[%clk 0:00:10.4]} 59... Qf5+ {[%clk 0:00:12.1]} 60. Kb2
{[%clk 0:00:10.3]} 60... Qf6+ {[%clk 0:00:12.2]} 61. Ka3 {[%clk 0:00:09.9]}
61... Qa1# {[%clk 0:00:12.5]} 0-1

[Event "Late-Titled-Tuesday-Blitz-June-04-2024"]
[Site "Chess.com"]
[Date "2024.06.04"]
[Round "1"]
[White "Artyom_ChessMate"]
[Black "Seppppppy"]
[Result "0-1"]
[WhiteElo "2534"]
[BlackElo "2187"]
[TimeControl "180+1"]
[EndTime "14:08:04 PDT"]
[Termination "Seppppppy won by checkmate"]

1. e4 {[%clk 0:03:00.4]} 1... e5 {[%clk 0:02:57]} 2. Nf3 {[%clk 0:03:00.2]} 2...
Nc6 {[%clk 0:02:56.7]} 3. Bb5 {[%clk 0:02:58.3]} 3... a6 {[%clk 0:02:54.9]} 4.
Bxc6 {[%clk 0:02:58.5]} 4... dxc6 {[%clk 0:02:54.6]} 5. O-O {[%clk 0:02:59.4]}
5... Qf6 {[%clk 0:02:48.6]} 6. d4 {[%clk 0:02:58.5]} 6... exd4 {[%clk
0:02:48.1]} 7. Bg5 {[%clk 0:02:58.6]} 7... Qd6 {[%clk 0:02:47]} 8. Nxd4 {[%clk
0:02:57.5]} 8... Be7 {[%clk 0:02:46.8]} 9. Bxe7 {[%clk 0:02:54.5]} 9... Nxe7
{[%clk 0:02:47.7]} 10. Nc3 {[%clk 0:02:54.9]} 10... Bd7 {[%clk 0:02:43.3]} 11.
Nb3 {[%clk 0:02:50.6]} 11... Qxd1 {[%clk 0:02:39.1]} 12. Raxd1 {[%clk
0:02:50.3]} 12... O-O-O {[%clk 0:02:39.5]} 13. f3 {[%clk 0:02:45.6]} 13... b6
{[%clk 0:02:31.5]} 14. a4 {[%clk 0:02:08.2]} 14... c5 {[%clk 0:02:29.8]} 15. a5
{[%clk 0:02:03.3]} 15... c4 {[%clk 0:02:23.8]} 16. Nd2 {[%clk 0:02:02.3]} 16...
b5 {[%clk 0:02:22.2]} 17. Rfe1 {[%clk 0:01:45.8]} 17... Nc6 {[%clk 0:02:15.8]}
18. Nf1 {[%clk 0:01:38.4]} 18... Nxa5 {[%clk 0:02:11.8]} 19. Ra1 {[%clk
0:01:37.3]} 19... Nc6 {[%clk 0:02:06.9]} 20. Rxa6 {[%clk 0:01:38.2]} 20... Kb7
{[%clk 0:02:06.2]} 21. Raa1 {[%clk 0:01:36.2]} 21... Nb4 {[%clk 0:01:58.8]} 22.
Ne3 {[%clk 0:01:32.4]} 22... Ra8 {[%clk 0:01:56.7]} 23. Ncd5 {[%clk 0:01:26.7]}
23... c5 {[%clk 0:01:42.4]} 24. Nxb4 {[%clk 0:01:21.5]} 24... cxb4 {[%clk
0:01:43.3]} 25. Nd5 {[%clk 0:01:21.6]} 25... b3 {[%clk 0:01:35.4]} 26. cxb3
{[%clk 0:01:19]} 26... cxb3 {[%clk 0:01:36.3]} 27. Kf2 {[%clk 0:01:16.9]} 27...
Ra2 {[%clk 0:01:20.2]} 28. Rab1 {[%clk 0:00:51.8]} 28... Be6 {[%clk 0:01:11.2]}
29. Nc3 {[%clk 0:00:47.9]} 29... Ra5 {[%clk 0:00:53.5]} 30. Ke3 {[%clk 0:00:42]}
30... b4 {[%clk 0:00:52.8]} 31. Ne2 {[%clk 0:00:42.1]} 31... Ra2 {[%clk
0:00:47.4]} 32. Nd4 {[%clk 0:00:41.4]} 32... Rc8 {[%clk 0:00:46.8]} 33. f4
{[%clk 0:00:39.1]} 33... Rc2 {[%clk 0:00:37.3]} 34. Re2 {[%clk 0:00:34.4]} 34...
Rc8 {[%clk 0:00:15.8]} 35. Rd2 {[%clk 0:00:29.8]} 35... Rca8 {[%clk 0:00:14.4]}
36. Nxe6 {[%clk 0:00:22.6]} 36... fxe6 {[%clk 0:00:15.3]} 37. Rd3 {[%clk
0:00:19.9]} 37... Kb6 {[%clk 0:00:11.5]} 38. Rxb3 {[%clk 0:00:19.8]} 38... Kb5
{[%clk 0:00:12.2]} 39. Rd3 {[%clk 0:00:20]} 39... Ka4 {[%clk 0:00:10.7]} 40. g4
{[%clk 0:00:09.7]} 40... Rc8 {[%clk 0:00:11.1]} 41. Kd2 {[%clk 0:00:07.7]} 41...
b3 {[%clk 0:00:11.1]} 42. Rc3 {[%clk 0:00:08.1]} 42... Rd8+ {[%clk 0:00:11.2]}
43. Ke3 {[%clk 0:00:08.5]} 43... Kb4 {[%clk 0:00:10.8]} 44. f5 {[%clk
0:00:07.6]} 44... exf5 {[%clk 0:00:10.8]} 45. gxf5 {[%clk 0:00:08.5]} 45... Rxb2
{[%clk 0:00:10.4]} 46. Rbc1 {[%clk 0:00:03.9]} 46... Rxh2 {[%clk 0:00:09.9]} 47.
e5 {[%clk 0:00:03.6]} 47... Rh3+ {[%clk 0:00:09.4]} 48. Kf4 {[%clk 0:00:02.3]}
48... Rxc3 {[%clk 0:00:10.3]} 49. Re1 {[%clk 0:00:01.6]} 49... Rc4+ {[%clk
0:00:10.7]} 50. Kg5 {[%clk 0:00:02.1]} 50... b2 {[%clk 0:00:11.3]} 51. e6 {[%clk
0:00:02.4]} 51... Rc1 {[%clk 0:00:11]} 52. e7 {[%clk 0:00:03]} 52... Re8 {[%clk
0:00:10.8]} 53. Re4+ {[%clk 0:00:02.2]} 53... Kb3 {[%clk 0:00:11.3]} 54. Re6
{[%clk 0:00:02.8]} 54... b1=Q {[%clk 0:00:11.2]} 55. Rb6+ {[%clk 0:00:03.7]}
55... Kc2 {[%clk 0:00:11.2]} 56. Rc6+ {[%clk 0:00:04]} 56... Kd2 {[%clk
0:00:11.3]} 57. Rxc1 {[%clk 0:00:04.9]} 57... Qxc1 {[%clk 0:00:11.4]} 58. f6
{[%clk 0:00:05.8]} 58... Qg1+ {[%clk 0:00:11.8]} 59. Kf5 {[%clk 0:00:06.2]}
59... Qf2+ {[%clk 0:00:12.5]} 60. Ke6 {[%clk 0:00:07.1]} 60... Qxf6+ {[%clk
0:00:13]} 61. Kd7 {[%clk 0:00:06.9]} 61... Rxe7+ {[%clk 0:00:13.6]} 62. Kc8
{[%clk 0:00:07.8]} 62... Qf8# {[%clk 0:00:14]} 0-1

[Event "Late-Titled-Tuesday-Blitz-June-04-2024"]
[Site "Chess.com"]
[Date "2024.06.04"]
[Round "1"]
[White "Schattman"]
[Black "ritanovikova"]
[Result "1-0"]
[WhiteElo "2548"]
[BlackElo "2151"]
[TimeControl "180+1"]
[EndTime "14:08:13 PDT"]
[Termination "Schattman won on time"]

1. Nf3 {[%clk 0:02:59.5]} 1... Nf6 {[%clk 0:02:59.6]} 2. c4 {[%clk 0:02:54.7]}
2... e6 {[%clk 0:02:16.2]} 3. g3 {[%clk 0:02:53.3]} 3... b6 {[%clk 0:02:14]} 4.
Bg2 {[%clk 0:02:51.8]} 4... Bb7 {[%clk 0:02:14.4]} 5. O-O {[%clk 0:02:52.4]}
5... d5 {[%clk 0:02:10.8]} 6. cxd5 {[%clk 0:02:50.7]} 6... exd5 {[%clk
0:02:08.9]} 7. d4 {[%clk 0:02:49.8]} 7... Be7 {[%clk 0:02:08]} 8. Nc3 {[%clk
0:02:49.7]} 8... O-O {[%clk 0:02:07.6]} 9. Bf4 {[%clk 0:02:49.4]} 9... c6 {[%clk
0:02:02.1]} 10. Rc1 {[%clk 0:02:49.1]} 10... Nbd7 {[%clk 0:01:56.8]} 11. h4
{[%clk 0:02:47.6]} 11... Rc8 {[%clk 0:01:54]} 12. Qa4 {[%clk 0:02:43.5]} 12...
a5 {[%clk 0:00:47.6]} 13. Rfd1 {[%clk 0:02:33.8]} 13... b5 {[%clk 0:00:30.2]}
14. Qc2 {[%clk 0:02:32.6]} 14... b4 {[%clk 0:00:26.4]} 15. Na4 {[%clk 0:02:25]}
15... Ne4 {[%clk 0:00:26]} 16. Bh3 {[%clk 0:02:19.9]} 16... f5 {[%clk 0:00:25]}
17. Ne5 {[%clk 0:02:14.9]} 17... Nxe5 {[%clk 0:00:22.9]} 18. Bxe5 {[%clk
0:02:15.8]} 18... Bd6 {[%clk 0:00:21]} 19. Bxd6 {[%clk 0:01:43.5]} 19... Qxd6
{[%clk 0:00:21.9]} 20. Nc5 {[%clk 0:01:43.4]} 20... Ba6 {[%clk 0:00:13.5]} 21.
Nxa6 {[%clk 0:01:34.7]} 21... Nxg3 {[%clk 0:00:13.5]} 22. Qd3 {[%clk 0:01:19.3]}
22... Ne4 {[%clk 0:00:09.9]} 23. Nc5 {[%clk 0:01:19.4]} 23... Qg6+ {[%clk
0:00:10]} 24. Kf1 {[%clk 0:01:13.9]} 24... Qh6 {[%clk 0:00:10]} 25. Nxe4 {[%clk
0:01:05.3]} 25... fxe4 {[%clk 0:00:10.8]} 26. Qg3 {[%clk 0:01:04.7]} 26... Rf6
{[%clk 0:00:08.9]} 27. Qg5 {[%clk 0:00:54]} 27... Rcf8 {[%clk 0:00:07.5]} 28. f3
{[%clk 0:00:43.5]} 28... exf3 {[%clk 0:00:06.7]} 29. e3 {[%clk 0:00:44]} 29...
f2 {[%clk 0:00:06.4]} 30. Rc2 {[%clk 0:00:38]} 30... Rg6 {[%clk 0:00:05.7]} 31.
Qxh6 {[%clk 0:00:36.9]} 31... Rxh6 {[%clk 0:00:06.5]} 32. Rxf2 {[%clk
0:00:36.1]} 32... Re8 {[%clk 0:00:07]} 33. Ke2 {[%clk 0:00:24.7]} 33... Rxh4
{[%clk 0:00:06.7]} 34. Bg2 {[%clk 0:00:23.8]} 34... g5 {[%clk 0:00:05.7]} 35.
Rg1 {[%clk 0:00:21.9]} 35... h6 {[%clk 0:00:05.3]} 36. Bf3 {[%clk 0:00:21.8]}
36... Kg7 {[%clk 0:00:05.3]} 37. Bg4 {[%clk 0:00:22]} 37... Kg6 {[%clk
0:00:05.1]} 38. Bf5+ {[%clk 0:00:21.2]} 38... Kg7 {[%clk 0:00:05.2]} 39. Bd7
{[%clk 0:00:20.3]} 39... Re7 {[%clk 0:00:05.4]} 40. Bxc6 {[%clk 0:00:20.4]}
40... Rh3 {[%clk 0:00:05.2]} 41. Rf3 {[%clk 0:00:20.2]} 41... Rh2+ {[%clk
0:00:05.3]} 42. Rf2 {[%clk 0:00:20.2]} 42... Rh3 {[%clk 0:00:05.6]} 43. Bxd5
{[%clk 0:00:20.4]} 43... Rhxe3+ {[%clk 0:00:05.8]} 44. Kd2 {[%clk 0:00:20]}
44... Rh3 {[%clk 0:00:05.2]} 45. Bg2 {[%clk 0:00:19]} 45... Rh4 {[%clk
0:00:05.4]} 46. d5 {[%clk 0:00:18.2]} 46... Rd4+ {[%clk 0:00:05.3]} 47. Kc2
{[%clk 0:00:18.3]} 47... a4 {[%clk 0:00:05.2]} 48. Rd2 {[%clk 0:00:15.6]} 48...
Rc7+ {[%clk 0:00:05.3]} 49. Kd1 {[%clk 0:00:15.6]} 49... Rg4 {[%clk 0:00:04.7]}
50. d6 {[%clk 0:00:14.4]} 50... Rd7 {[%clk 0:00:05]} 51. Re1 {[%clk 0:00:13.7]}
51... Kg6 {[%clk 0:00:03.7]} 52. Bh3 {[%clk 0:00:13.7]} 1-0

[Event "Late-Titled-Tuesday-Blitz-June-04-2024"]
[Site "Chess.com"]
[Date "2024.06.04"]
[Round "1"]
[White "picturesquecheck"]
[Black "Lennis93"]
[Result "1/2-1/2"]
[WhiteElo "2429"]
[BlackElo "2742"]
[TimeControl "180+1"]
[EndTime "14:08:14 PDT"]
[Termination "Game drawn - insufficient material"]

1. g3 {[%clk 0:02:59.1]} 1... c5 {[%clk 0:02:54.1]} 2. Bg2 {[%clk 0:02:59.3]}
2... Nc6 {[%clk 0:02:53.7]} 3. Nf3 {[%clk 0:02:59.4]} 3... d5 {[%clk 0:02:51.7]}
4. O-O {[%clk 0:02:59]} 4... e5 {[%clk 0:02:51.4]} 5. c4 {[%clk 0:02:58.8]} 5...
d4 {[%clk 0:02:51.1]} 6. d3 {[%clk 0:02:58.8]} 6... Bd6 {[%clk 0:02:49.3]} 7. a3
{[%clk 0:02:59.3]} 7... a5 {[%clk 0:02:48.8]} 8. Nbd2 {[%clk 0:02:58.6]} 8...
Nf6 {[%clk 0:02:48.5]} 9. e3 {[%clk 0:02:53.2]} 9... O-O {[%clk 0:02:39.3]} 10.
exd4 {[%clk 0:02:52.9]} 10... exd4 {[%clk 0:02:39.1]} 11. Ng5 {[%clk 0:02:50.7]}
11... Bg4 {[%clk 0:02:36.1]} 12. Qc2 {[%clk 0:02:47.3]} 12... Re8 {[%clk
0:02:28.7]} 13. Nge4 {[%clk 0:02:46]} 13... Bf8 {[%clk 0:02:26.8]} 14. Re1
{[%clk 0:02:43.1]} 14... Nd7 {[%clk 0:02:15.3]} 15. f3 {[%clk 0:02:28.1]} 15...
Be6 {[%clk 0:02:01.2]} 16. Nf2 {[%clk 0:02:23.2]} 16... f5 {[%clk 0:01:59.8]}
17. Nf1 {[%clk 0:02:14.9]} 17... Nf6 {[%clk 0:01:49.6]} 18. h4 {[%clk
0:02:09.8]} 18... Bd6 {[%clk 0:01:46.8]} 19. Bg5 {[%clk 0:02:08.8]} 19... h6
{[%clk 0:01:44.8]} 20. Bxf6 {[%clk 0:02:04.1]} 20... Qxf6 {[%clk 0:01:45.7]} 21.
f4 {[%clk 0:02:02]} 21... Bf7 {[%clk 0:01:42.1]} 22. Nd2 {[%clk 0:01:54.8]}
22... Re3 {[%clk 0:01:40.1]} 23. Nf1 {[%clk 0:01:49.8]} 23... Re7 {[%clk
0:01:39.1]} 24. Rxe7 {[%clk 0:01:48.8]} 24... Qxe7 {[%clk 0:01:39.3]} 25. Qd2
{[%clk 0:01:44.1]} 25... Re8 {[%clk 0:01:38.4]} 26. Nh2 {[%clk 0:01:23.8]} 26...
a4 {[%clk 0:01:21.6]} 27. Nf3 {[%clk 0:01:22.8]} 27... Qd8 {[%clk 0:01:13.5]}
28. Re1 {[%clk 0:01:21.6]} 28... Rxe1+ {[%clk 0:01:07.5]} 29. Qxe1 {[%clk
0:01:22.5]} 29... Qa5 {[%clk 0:01:00.2]} 30. Qxa5 {[%clk 0:01:19.3]} 30... Nxa5
{[%clk 0:01:01.1]} 31. Nd2 {[%clk 0:01:19.1]} 31... g5 {[%clk 0:00:53.2]} 32.
hxg5 {[%clk 0:01:17.8]} 32... hxg5 {[%clk 0:00:54.1]} 33. Nh3 {[%clk 0:01:17.9]}
33... gxf4 {[%clk 0:00:44.4]} 34. Nxf4 {[%clk 0:01:18.8]} 34... Kf8 {[%clk
0:00:44]} 35. Kf2 {[%clk 0:01:18.2]} 35... Ke7 {[%clk 0:00:44]} 36. Nd5+ {[%clk
0:01:14.3]} 36... Kd7 {[%clk 0:00:43]} 37. Nb6+ {[%clk 0:01:09.1]} 37... Kc7
{[%clk 0:00:43]} 38. Nxa4 {[%clk 0:01:06.7]} 38... Be8 {[%clk 0:00:43.1]} 39.
Nxc5 {[%clk 0:01:05.8]} 39... Bxc5 {[%clk 0:00:39.4]} 40. b4 {[%clk 0:01:05.6]}
40... Be7 {[%clk 0:00:35]} 41. bxa5 {[%clk 0:01:04.2]} 41... Bxa3 {[%clk
0:00:35.9]} 42. Nb3 {[%clk 0:01:02.5]} 42... Bb2 {[%clk 0:00:35.9]} 43. Ke2
{[%clk 0:00:57.8]} 43... Bc3 {[%clk 0:00:34.7]} 44. Nc5 {[%clk 0:00:51.6]} 44...
Bc6 {[%clk 0:00:32]} 45. Bxc6 {[%clk 0:00:44.9]} 45... Kxc6 {[%clk 0:00:32.5]}
46. Ne6 {[%clk 0:00:45]} 46... Kd6 {[%clk 0:00:31.1]} 47. Nd8 {[%clk 0:00:37.7]}
47... Kc7 {[%clk 0:00:25.9]} 48. Nf7 {[%clk 0:00:36.5]} 48... Kd7 {[%clk
0:00:18.2]} 49. Kf3 {[%clk 0:00:28.4]} 49... Bxa5 {[%clk 0:00:16.2]} 50. Kf4
{[%clk 0:00:25.8]} 50... Ke6 {[%clk 0:00:12.4]} 51. Ng5+ {[%clk 0:00:19.8]}
51... Kf6 {[%clk 0:00:12.7]} 52. Nh7+ {[%clk 0:00:16.9]} 52... Kg6 {[%clk
0:00:12.9]} 53. Nf8+ {[%clk 0:00:16.7]} 53... Kf7 {[%clk 0:00:12.6]} 54. Nd7
{[%clk 0:00:16.1]} 54... Ke6 {[%clk 0:00:12.6]} 55. Nc5+ {[%clk 0:00:16.3]}
55... Kf6 {[%clk 0:00:12.8]} 56. Nxb7 {[%clk 0:00:17]} 56... Bc7+ {[%clk
0:00:13.2]} 57. Kf3 {[%clk 0:00:17.4]} 57... Ke6 {[%clk 0:00:13]} 58. Nc5+
{[%clk 0:00:17.4]} 58... Kd6 {[%clk 0:00:12.8]} 59. Nb3 {[%clk 0:00:18.3]} 59...
Ke5 {[%clk 0:00:12.5]} 60. c5 {[%clk 0:00:17.6]} 60... Kd5 {[%clk 0:00:12.6]}
61. c6 {[%clk 0:00:15.5]} 61... Be5 {[%clk 0:00:12.4]} 62. g4 {[%clk 0:00:13.7]}
62... fxg4+ {[%clk 0:00:10.5]} 63. Kxg4 {[%clk 0:00:14.2]} 63... Kxc6 {[%clk
0:00:11.1]} 64. Kf5 {[%clk 0:00:14.3]} 64... Kd5 {[%clk 0:00:11.3]} 65. Nxd4
{[%clk 0:00:14.5]} 65... Kxd4 {[%clk 0:00:10.6]} 66. Ke6 {[%clk 0:00:14.1]}
66... Bf4 {[%clk 0:00:10.1]} 67. Kf7 {[%clk 0:00:13.3]} 67... Be3 {[%clk
0:00:10.5]} 68. Kg6 {[%clk 0:00:13.9]} 68... Bd2 {[%clk 0:00:11.4]} 69. Kf7
{[%clk 0:00:14.4]} 69... Bc3 {[%clk 0:00:12.3]} 70. Kg6 {[%clk 0:00:15]} 70...
Kxd3 {[%clk 0:00:13.2]} 1/2-1/2

[Event "Late-Titled-Tuesday-Blitz-June-04-2024"]
[Site "Chess.com"]
[Date "2024.06.04"]
[Round "1"]
[White "YellowJacek"]
[Black "Elprofessor21"]
[Result "1-0"]
[WhiteElo "2390"]
[BlackElo "2670"]
[TimeControl "180+1"]
[EndTime "14:08:19 PDT"]
[Termination "YellowJacek won by resignation"]

1. e4 {[%clk 0:02:57.6]} 1... d6 {[%clk 0:02:56.2]} 2. d4 {[%clk 0:02:56.8]}
2... Nf6 {[%clk 0:02:55.3]} 3. Nc3 {[%clk 0:02:56.5]} 3... g6 {[%clk 0:02:55.2]}
4. f4 {[%clk 0:02:54.9]} 4... Bg7 {[%clk 0:02:55.1]} 5. Nf3 {[%clk 0:02:53.6]}
5... O-O {[%clk 0:02:55.6]} 6. Bd3 {[%clk 0:02:52.9]} 6... c6 {[%clk 0:02:52.8]}
7. e5 {[%clk 0:02:44.2]} 7... Nd5 {[%clk 0:02:47.8]} 8. Nxd5 {[%clk 0:02:42.5]}
8... cxd5 {[%clk 0:02:46.3]} 9. c3 {[%clk 0:02:30.3]} 9... Nc6 {[%clk
0:02:45.9]} 10. Qe2 {[%clk 0:02:29.5]} 10... Bg4 {[%clk 0:02:36.9]} 11. h3
{[%clk 0:02:25.5]} 11... Bxf3 {[%clk 0:02:36.4]} 12. Qxf3 {[%clk 0:02:26]} 12...
dxe5 {[%clk 0:02:29.2]} 13. fxe5 {[%clk 0:02:22.7]} 13... f6 {[%clk 0:02:29.4]}
14. exf6 {[%clk 0:02:11]} 14... Bxf6 {[%clk 0:02:28.6]} 15. Qg4 {[%clk
0:01:55.9]} 15... e5 {[%clk 0:02:26]} 16. Bh6 {[%clk 0:01:53.7]} 16... e4 {[%clk
0:02:19.4]} 17. Bxf8 {[%clk 0:01:47.6]} 17... exd3 {[%clk 0:02:19.1]} 18. O-O
{[%clk 0:01:27.3]} 18... Qxf8 {[%clk 0:02:10.6]} 19. Qe6+ {[%clk 0:01:15.6]}
19... Kg7 {[%clk 0:02:03.6]} 20. Qxd5 {[%clk 0:01:15.7]} 20... Rd8 {[%clk
0:02:01.2]} 21. Qb5 {[%clk 0:01:15.2]} 21... Qd6 {[%clk 0:01:28.3]} 22. Qxd3
{[%clk 0:01:05.7]} 22... Rd7 {[%clk 0:01:22.5]} 23. Qf3 {[%clk 0:01:00.1]} 23...
Ne7 {[%clk 0:01:15.4]} 24. Rae1 {[%clk 0:00:57.4]} 24... Nf5 {[%clk 0:01:14.5]}
25. Qf4 {[%clk 0:00:55.6]} 25... Qxf4 {[%clk 0:00:53.3]} 26. Rxf4 {[%clk
0:00:56.5]} 26... b5 {[%clk 0:00:52.2]} 27. g4 {[%clk 0:00:53.1]} 27... Nd6
{[%clk 0:00:50.7]} 28. Re6 {[%clk 0:00:52.6]} 28... Bg5 {[%clk 0:00:49]} 29. Rf1
{[%clk 0:00:50.6]} 29... Nc4 {[%clk 0:00:45.6]} 30. b3 {[%clk 0:00:48.4]} 30...
Nd2 {[%clk 0:00:41.6]} 31. Rd1 {[%clk 0:00:43.8]} 31... b4 {[%clk 0:00:40.4]}
32. h4 {[%clk 0:00:38.9]} 32... Bf4 {[%clk 0:00:33.2]} 33. cxb4 {[%clk
0:00:34.7]} 33... Rxd4 {[%clk 0:00:32.3]} 34. Re7+ {[%clk 0:00:32.9]} 34... Kf6
{[%clk 0:00:28.7]} 35. Rxa7 {[%clk 0:00:33.8]} 35... Be3+ {[%clk 0:00:24.1]} 36.
Kg2 {[%clk 0:00:31.4]} 36... Rxg4+ {[%clk 0:00:22.3]} 37. Kh3 {[%clk 0:00:31.5]}
37... Rf4 {[%clk 0:00:18.8]} 38. Ra5 {[%clk 0:00:24.6]} 38... Rf3+ {[%clk
0:00:18.8]} 39. Kg2 {[%clk 0:00:24.1]} 39... Rf2+ {[%clk 0:00:16.5]} 40. Kh3
{[%clk 0:00:23.2]} 40... Ne4 {[%clk 0:00:12.6]} 41. b5 {[%clk 0:00:18.9]} 41...
Rf3+ {[%clk 0:00:12.5]} 42. Kg2 {[%clk 0:00:18.2]} 42... Rg3+ {[%clk 0:00:11.9]}
43. Kh2 {[%clk 0:00:18.7]} 43... Bf4 {[%clk 0:00:10.6]} 44. Rf1 {[%clk
0:00:17.7]} 44... Rf3+ {[%clk 0:00:07.8]} 45. Kg2 {[%clk 0:00:18.1]} 45... Rg3+
{[%clk 0:00:08.2]} 46. Kh2 {[%clk 0:00:18.5]} 46... Kf5 {[%clk 0:00:08.8]} 47.
b6+ {[%clk 0:00:17.6]} 47... Kg4 {[%clk 0:00:09.1]} 48. Rg5+ {[%clk 0:00:17]}
48... Nxg5 {[%clk 0:00:08]} 49. hxg5 {[%clk 0:00:17.9]} 49... Rc3+ {[%clk
0:00:07.3]} 50. Kg2 {[%clk 0:00:17.8]} 50... Rc2+ {[%clk 0:00:07.8]} 51. Rf2
{[%clk 0:00:18.4]} 51... Rxf2+ {[%clk 0:00:06.8]} 52. Kxf2 {[%clk 0:00:18.4]}
52... Kxg5 {[%clk 0:00:06.7]} 53. b7 {[%clk 0:00:18.4]} 53... Bb8 {[%clk
0:00:06]} 54. a4 {[%clk 0:00:18.4]} 54... h5 {[%clk 0:00:06.6]} 55. b4 {[%clk
0:00:19]} 55... h4 {[%clk 0:00:05.8]} 56. b5 {[%clk 0:00:19.6]} 56... Kg4 {[%clk
0:00:02.9]} 57. a5 {[%clk 0:00:20.1]} 57... h3 {[%clk 0:00:03]} 58. b6 {[%clk
0:00:20.6]} 58... Bd6 {[%clk 0:00:02.7]} 59. a6 {[%clk 0:00:20.4]} 59... Bc5+
{[%clk 0:00:03]} 60. Kf1 {[%clk 0:00:20]} 60... Bd6 {[%clk 0:00:02.9]} 61. a7
{[%clk 0:00:20]} 61... Kf3 {[%clk 0:00:03.4]} 62. b8=Q {[%clk 0:00:19.6]} 62...
h2 {[%clk 0:00:03.1]} 63. Qb7+ {[%clk 0:00:20]} 63... Kg3 {[%clk 0:00:03]} 64.
Qh1 {[%clk 0:00:20.9]} 1-0